{"text_format":"1","workbook":"xlsx","n_sheets":4,"sheets":["Blad1","Blad2","Blad3","Blad4"],"not_rendered":{"charts":0,"images":1,"macros":1,"external_links":0,"defined_names":1,"comments":0,"pivot_tables":0},"unopened":[],"bounds":{"document_bytes":16777216,"sheet_cells":100000,"rows_first":2000,"rows_last":500,"rows_between":2000,"halvings":0,"cell_chars":16384,"cell_head_chars":4096},"cells_cut":0,"cells_raw":0,"read":"whole","date_system":"1900"}

{"sheet":"Blad1","index":0,"n_rows":27,"n_cols":42,"rows_kept":27,"cut":false,"hidden":false,"merged":[[2,0,2,1],[0,20,1,21],[0,22,1,23],[0,40,1,40],[0,0,1,1],[0,28,1,29],[0,30,1,31],[0,32,1,33],[0,12,1,13],[0,10,1,11],[0,8,1,9],[0,6,1,7],[0,34,1,35],[0,42,1,42],[27,39,27,41],[0,24,1,25],[0,26,1,27],[0,2,1,3],[0,4,1,5],[0,14,1,15],[0,41,1,41],[0,38,1,39],[0,16,1,17],[0,18,1,19],[0,36,1,37]]}
["Datum",null,"2015-11-04",null,"2015-11-11",null,"2015-11-18",null,"2015-11-25",null,"2015-12-02",null,"2015-12-09",null,"2015-12-16",null,null,null,"2015-12-23",null,"2015-12-30",null,"2016-01-06",null,"2016-01-13",null,"2016-01-20",null,"2016-01-27",null,"2016-02-03",null,"2016-02-10",null,"2016-02-17",null,"2016-02-24",null,"Totaal",null,"Hoofdvogel","Eindsaldo"]
[]
["Deelnemers",null,"Goed","Fout","Goed","Fout","Goed","Fout","Goed","Fout","Goed","Fout","Goed","Fout","Goed","Fout",null,null,"Goed","Fout","Goed","Fout","Goed","Fout","Goed","Fout","Goed","Fout","Goed","Fout","Goed","Fout","Goed","Fout","Goed","Fout","goed","fout","Goed ","Fout"]
[1,"Jaap Rentmeester",6,0,null,null,null,null,null,null,null,null,null,null,null,null,null,null,null,null,null,null,null,null,null,null,null,null,null,null,null,null,null,null,null,null,null,null,{"$f":"SUM(C4+E4+G4+I4+K4+M4+O4+Q4+S4+U4+W4+Y4+AA4+AC4+AE4+AG4+AI4+AK4)","v":6},0,null,{"$f":"SUM(AM4-AN4)","v":6}]
[2,"Rinus Buijsrogge",4,2,null,null,null,null,null,null,null,null,null,null,null,null,null,null,null,null,null,null,null,null,null,null,null,null,null,null,null,null,null,null,null,null,null,null,4,2,null,2]
[3,"Frans Koens",2,0,null,null,null,null,null,null,null,null,null,null,null,null,null,null,null,null,null,null,null,null,null,null,null,null,null,null,null,null,null,null,null,null,null,null,2,0,null,2]
[4,"Bas de Jonge",1,0,null,null,null,null,null,null,null,null,null,null,null,null,null,null,null,null,null,null,null,null,null,null,null,null,null,null,null,null,null,null,null,null,null,null,1,0,1,1]
[5,"Jan Buijsrogge",2,2,null,null,null,null,null,null,null,null,null,null,null,null,null,null,null,null,null,null,null,null,null,null,null,null,null,null,null,null,null,null,null,null,null,null,2,2,null,0]
[6,"Adrie Rijk",0,0,null,null,null,null,null,null,null,null,null,null,null,null,null,null,null,null,null,null,null,null,null,null,null,null,null,null,null,null,null,null,null,null,null,null,{"$f":"SUM(C9+E9+G9+I9+K9+M9+O9+S9+U9+W9+Y9+AA9+AC9+AE9+AG9+AI9+AK9)","v":0},{"$f":"SUM(D9+F9+H9+J9+L9+N9+P9+T9+V9+X9+Z9+AB9+AD9+AF9+AH9+AJ9+AL9)","v":0},null,0]
[7,"Piet de Jonge","-","-",null,null,null,null,null,null,null,null,null,null,null,null,null,null,null,null,null,null,null,null,null,null,null,null,null,null,null,null,null,null,null,null,null,null,{"$f":"SUM(E10+G10+I10+K10+M10+O10+S10+U10+W10+Y10+AA10+AC10+AE10+AG10+AI10+AK10)","v":0},{"$f":"SUM(F10+H10+J10+L10+N10+P10+T10+V10+X10+Z10+AB10+AD10+AF10+AH10+AJ10+AL10)","v":0},null,0]
[8,"Lau Rentmeester",0,0,null,null,null,null,null,null,null,null,null,null,null,null,null,null,null,null,null,null,null,null,null,null,null,null,null,null,null,null,null,null,null,null,null,null,{"$f":"SUM(C11+E11+G11+I11+K11+M11+O11+Q11+S11+U11+W11+Y11+AA11+AC11+AE11+AG11+AI11+AK11)","v":0},{"$f":"SUM(D11+F11+H11+J11+L11+N11+P11+R11+T11+V11+X11+Z11+AB11+AD11+AF11+AH11+AJ11+AL11)","v":0},null,0]
[9,"Johnnie Boonman","-","-",null,null,null,null,null,null,null,null,null,null,null,null,null,null,null,null,null,null,null,null,null,null,null,null,null,null,null,null,null,null,null,null,null,null,{"$f":"SUM(E12+G12+I12+K12+M12+O12+Q12+S12+U12+W12+Y12+AA12+AC12+AE12+AG12+AI12+AK12)","v":0},{"$f":"SUM(F12+H12+J12+L12+N12+P12+R12+T12+V12+X12+Z12+AB12+AD12+AF12+AH12+AJ12+AL12)","v":0},null,0]
[10,"Piet Verbart","-","-",null,null,null,null,null,null,null,null,null,null,null,null,null,null,null,null,null,null,null,null,null,null,null,null,null,null,null,null,null,null,null,null,null,null,0,0,null,0]
[11,"Hans Franse","-","-",null,null,null,null,null,null,null,null,null,null,null,null,null,null,null,null,null,null,null,null,null,null,null,null,null,null,null,null,null,null,null,null,null,null,0,0,null,0]
[12,"Peter Rentmeester","-","-",null,null,null,null,null,null,null,null,null,null,null,null,null,null,null,null,null,null,null,null,null,null,null,null,null,null,null,null,null,null,null,null,null,null,0,0,null,0]
[13,"Arnold Verwilligen","-","-",null,null,null,null,null,null,null,null,null,null,null,null,null,null,null,null,null,null,null,null,null,null,null,null,null,null,null,null,null,null,null,null,null,null,0,0,null,0]
[14,"Jan Vermeule","-","-",null,null,null,null,null,null,null,null,null,null,null,null,null,null,null,null,null,null,null,null,null,null,null,null,null,null,null,null,null,null,null,null,null,null,0,0,null,0]
[15,"Dennie Boonman","-","-",null,null,null,null,null,null,null,null,null,null,null,null,null,null,null,null,null,null,null,null,null,null,null,null,null,null,null,null,null,null,null,null,null,null,0,0,null,0]
[16,"Huib Rentmeester","-","-",null,null,null,null,null,null,null,null,null,null,null,null,null,null,null,null,null,null,null,null,null,null,null,null,null,null,null,null,null,null,null,null,null,null,0,0,null,0]
[17,"Wessel de Puyt","-","-",null,null,null,null,null,null,null,null,null,null,null,null,null,null,null,null,null,null,null,null,null,null,null,null,null,null,null,null,null,null,null,null,null,null,0,0,null,0]
[18,"René de Puyt","-","-",null,null,null,null,null,null,null,null,null,null,null,null,null,null,null,null,null,null,null,null,null,null,null,null,null,null,null,null,null,null,null,null,null,null,0,0,null,0]
[19,"Mark de Jonge",0,2,null,null,null,null,null,null,null,null,null,null,null,null,null,null,null,null,null,null,null,null,null,null,null,null,null,null,null,null,null,null,null,null,null,null,{"$f":"SUM(C22+E22+G22+I22+K22+M22+O22+Q22+S22+U22+W22+Y22+AA22+AC22+AE22+AG22+AI22+AK22)","v":0},{"$f":"SUM(D22+F22+H22+J22+L22+N22+P22+R22+T22+V22+X22+Z22+AB22+AD22+AF22+AH22+AJ22+AL22)","v":2},null,-2]
[20,null,null,null,null,null,null,null,null,null,null,null,null,null,null,null,null,null,null,null,null,null,null,null,null,null,null,null,null,null,null,null,null,null,null,null,null,null,{"$f":"SUM(C23+E23+G23+I23+K23+M23+O23+Q23+S23+U23+W23+Y23+AA23+AC23+AE23+AG23+AI23+AK23)","v":0},{"$f":"SUM(D23+F23+H23+J23+L23+N23+P23+R23+T23+V23+X23+Z23+AB23+AD23+AF23+AH23+AJ23+AL23)","v":0}]
[21]
[22]
[]
[null,"Totalen",{"$f":"SUM(C4:C25)","v":15},{"$f":"SUM(D4:D25)","v":6},0,0,0,0,0,0,0,0,0,0,0,0,null,null,0,0,0,0,0,0,0,0,0,0,0,0,0,0,0,0,0,0,0,0,{"$f":"SUM(AM4:AM25)","v":15},{"$f":"SUM(AN4:AN25)","v":6},1,{"$f":"SUM(AP4:AP25)","v":9}]

{"sheet":"Blad2","index":1,"n_rows":0,"n_cols":0,"rows_kept":0,"cut":false,"hidden":false,"merged":[]}

{"sheet":"Blad3","index":2,"n_rows":0,"n_cols":0,"rows_kept":0,"cut":false,"hidden":false,"merged":[]}

{"sheet":"Blad4","index":3,"n_rows":0,"n_cols":0,"rows_kept":0,"cut":false,"hidden":false,"merged":[]}